bitfinex-derivatives/quotes_BTCF0:USTF0_20250811
["timestamp","ask_amount","ask_price","bid_price","bid_amount"]
[1754952477507,0.0841351,118850.0,118840.0,0.0841412]
[1754952477707,0.1072751,118850.0,118840.0,1.26840495]
[1754952478214,0.1538851,118850.0,118840.0,1.26840495]
[1754952478408,0.1842951,118850.0,118840.0,1.26840495]
[1754952478714,0.1989251,118850.0,118840.0,1.26840495]
[1754952478906,0.1990251,118850.0,118840.0,1.26940495]
[1754952479410,0.1843951,118850.0,118840.0,1.26940495]
[1754952479808,0.1073751,118850.0,118840.0,0.9653312]
[1754952480008,0.1073751,118850.0,118840.0,1.27140495]
[1754952480510,0.1539851,118850.0,118840.0,1.27140495]
[1754952480910,0.1539851,118850.0,118840.0,0.9653312]
[1754952481107,0.1539851,118850.0,118840.0,1.27140495]
[1754952481416,0.0001,118850.0,118840.0,1.27140495]
[1754952482404,0.0001,118850.0,118840.0,0.9643312]
[1754952482604,0.0001,118850.0,118840.0,1.27040495]
[1754952482808,0.0001,118850.0,118840.0,1.26840495]
[1754952483110,0.02324,118850.0,118840.0,1.26840495]
[1754952483518,0.02324,118850.0,118840.0,0.9623312]
[1754952483715,0.02324,118850.0,118840.0,1.26840495]
[1754952484512,0.1073741,118850.0,118840.0,1.26840495]
[1754952484714,0.1539841,118850.0,118840.0,1.26840495]
[1754952486619,0.1539841,118850.0,118840.0,0.5102937]
[1754952486817,0.1843941,118850.0,118840.0,1.2852137]
[1754952487020,0.50509785,118850.0,118840.0,0.19208995]
[1754952487215,0.50509785,118850.0,118840.0,0.01708875]
[1754952487515,0.67485065,118850.0,118840.0,0.01708875]
[1754952487724,0.0841483,118830.0,118820.0,0.24145458]
[1754952487906,0.50511205,118830.0,118820.0,1.06494458]
[1754952488309,0.50511205,118830.0,118820.0,0.29010458]
[1754952488612,0.52392761,118830.0,118820.0,0.98381458]
[1754952489015,0.52392761,118830.0,118820.0,1.02602458]
[1754952489422,0.52392761,118830.0,118820.0,0.88585026]
[1754952489723,0.21785386,118830.0,118820.0,0.94181634]
[1754952490021,0.21985386,118830.0,118820.0,0.98073634]
[1754952490322,0.21985386,118830.0,118820.0,0.96698026]
[1754952491415,0.21985386,118830.0,118820.0,0.98082639]
[1754952491615,0.21985386,118830.0,118820.0,0.96698026]
[1754952492120,0.52592761,118830.0,118820.0,0.87664026]
[1754952492324,0.52592761,118830.0,118820.0,0.77536]
[1754952492718,0.0841624,118810.0,118800.0,0.26967031]
[1754952493024,0.50512615,118810.0,118800.0,1.22033961]
[1754952493210,0.1990524,118810.0,118800.0,1.22049961]
[1754952493810,0.1990524,118810.0,118800.0,1.24823072]
[1754952495214,0.10026,118810.0,118800.0,1.55430447]
[1754952495518,0.02324,118810.0,118800.0,1.55430447]
[1754952496822,0.0001,118810.0,118800.0,1.55430447]
[1754952497026,0.0001,118810.0,118800.0,1.86037822]
[1754952497223,0.0001,118810.0,118800.0,1.55430447]
[1754952499627,0.0001,118810.0,118800.0,1.91510447]
[1754952505724,0.0001,118810.0,118800.0,2.22117822]
[1754952507018,0.04328556,118830.0,118800.0,1.96867032]
[1754952507220,0.04328556,118830.0,118820.0,0.39022915]
[1754952507424,0.04328556,118830.0,118820.0,1.21526915]
[1754952507625,0.04328556,118830.0,118820.0,1.26931915]
[1754952507826,0.05889556,118830.0,118820.0,1.26931915]
[1754952508025,0.09249556,118830.0,118820.0,1.26931915]
[1754952508431,0.04328556,118830.0,118820.0,1.26931915]
[1754952508727,0.04338556,118830.0,118820.0,1.26931915]
[1754952509730,0.01891556,118830.0,118820.0,1.26931915]
[1754952509923,0.02091556,118830.0,118820.0,1.63011915]
[1754952510629,0.04538556,118830.0,118820.0,1.63011915]
[1754952510832,0.04538556,118830.0,118820.0,1.63007867]
[1754952518844,0.04538556,118830.0,118820.0,1.32400492]
[1754952519046,0.04538556,118830.0,118820.0,1.63007867]
[1754952519236,0.06099556,118830.0,118820.0,1.63007867]
[1754952519437,0.09459556,118830.0,118820.0,1.63007867]
[1754952519945,0.06099556,118830.0,118820.0,1.63007867]
[1754952520744,0.04538556,118830.0,118820.0,1.63007867]
[1754952524749,0.04538556,118830.0,118820.0,1.26927867]
[1754952525050,0.04538556,118830.0,118820.0,1.63007867]
[1754952529553,0.04538556,118830.0,118820.0,1.78135846]
[1754952531049,0.04538556,118830.0,118820.0,1.63007867]
[1754952534157,0.02091556,118830.0,118820.0,0.44491492]
[1754952534363,0.13881556,118830.0,118820.0,1.32243492]
[1754952535361,0.13881556,118830.0,118820.0,1.62850867]
[1754952536264,0.12497556,118830.0,118820.0,1.62850867]
[1754952536460,0.12497556,118830.0,118820.0,1.32243492]
[1754952536658,0.12497556,118830.0,118820.0,1.62850867]
[1754952537959,0.09123556,118830.0,118820.0,1.62850867]
[1754952538866,0.17538386,118830.0,118820.0,1.62850867]
[1754952539062,0.22296386,118830.0,118820.0,1.62850867]
[1754952539369,0.13881556,118830.0,118820.0,1.62850867]
[1754952539665,0.12497556,118830.0,118820.0,1.62850867]
[1754952540266,0.13881556,118830.0,118820.0,1.62850867]
[1754952540969,0.22296386,118830.0,118820.0,1.62850867]
[1754952541370,0.13881556,118830.0,118820.0,1.62850867]
[1754952541574,0.22296386,118830.0,118820.0,1.31030492]
[1754952541869,0.13881556,118830.0,118820.0,1.61637867]
[1754952542063,0.13881556,118830.0,118820.0,1.62850867]
[1754952542365,0.12497556,118830.0,118820.0,1.62850867]
[1754952542563,0.06102556,118830.0,118820.0,1.62850867]
[1754952543074,0.0021,118830.0,118820.0,1.62850867]
[1754952543566,0.04221,118830.0,118820.0,1.62850867]
[1754952543772,0.02587,118830.0,118820.0,1.62850867]
[1754952546574,0.02587,118830.0,118820.0,1.77978846]
[1754952547069,0.10616,118830.0,118820.0,1.77978846]
[1754952547274,0.12,118830.0,118820.0,1.77978846]
[1754952547574,0.12,118830.0,118820.0,1.47371471]
[1754952547775,0.2041483,118830.0,118820.0,1.76765846]
[1754952548275,0.2041483,118830.0,118820.0,1.47371471]
[1754952548478,0.12,118830.0,118820.0,1.47371471]
[1754952548979,0.2041483,118830.0,118820.0,1.47371471]
[1754952549276,0.2041483,118830.0,118820.0,1.77978846]
[1754952549776,0.51022205,118830.0,118820.0,0.32586471]
[1754952549969,0.51022205,118830.0,118820.0,1.10074471]
[1754952550170,0.2041483,118830.0,118820.0,1.10074471]
[1754952550369,0.2041483,118830.0,118820.0,1.41894846]
[1754952551376,0.2041483,118830.0,118820.0,1.26766867]
[1754952551581,0.12,118830.0,118820.0,1.26766867]
[1754952551876,0.2041483,118830.0,118820.0,1.26766867]
[1754952553070,0.12,118830.0,118820.0,1.26766867]
[1754952553272,0.02587,118830.0,118820.0,1.62846867]
[1754952553572,0.0021,118830.0,118820.0,1.62846867]
[1754952553780,0.0021,118830.0,118820.0,1.32239492]
[1754952554079,0.0021,118830.0,118820.0,1.62846867]
[1754952554877,0.02587,118830.0,118820.0,1.62846867]
[1754952557277,0.0021,118830.0,118820.0,1.62846867]
[1754952559586,0.02536,118830.0,118820.0,1.62846867]
[1754952560884,0.02536,118830.0,118820.0,1.32239492]
[1754952561080,0.02536,118830.0,118820.0,1.62846867]
[1754952561486,0.02536,118830.0,118820.0,0.18671492]
[1754952561784,0.1095083,118830.0,118820.0,1.26814867]
[1754952561988,0.1789483,118830.0,118820.0,1.26814867]
[1754952562279,0.1551983,118830.0,118820.0,0.94994492]
[1754952562486,0.50874205,118830.0,118820.0,0.94994492]
[1754952562983,0.2026683,118830.0,118820.0,0.94994492]
[1754952563176,0.2026683,118830.0,118820.0,0.96207492]
[1754952564476,0.11852,118830.0,118820.0,0.96207492]
[1754952564878,0.11852,118830.0,118820.0,1.26814867]
[1754952565381,0.2026683,118830.0,118820.0,1.26814867]
[1754952565690,0.2026683,118830.0,118820.0,0.1319754]
[1754952565691,0.86954205,118830.0,118820.0,0.1319754]
[1754952565881,0.86954205,118830.0,118820.0,0.8702954]
[1754952567686,0.86954205,118830.0,118820.0,0.8979554]
[1754952567888,0.86954205,118830.0,118820.0,0.8841554]
[1754952568088,0.86954205,118830.0,118820.0,0.9118154]
[1754952568489,0.5634683,118830.0,118820.0,0.9118154]
[1754952568691,0.86954205,118830.0,118820.0,0.9118154]
[1754952569192,0.86954205,118830.0,118820.0,0.9084354]
[1754952569383,0.86954205,118830.0,118820.0,0.9500754]
[1754952571089,0.86954205,118830.0,118820.0,0.9084354]
[1754952571393,0.86954205,118830.0,118820.0,0.9500754]
[1754952571694,0.2026683,118830.0,118820.0,0.9500754]
[1754952574195,0.2026683,118830.0,118820.0,0.9622054]
[1754952575798,0.1095083,118830.0,118820.0,1.62907915]
[1754952575993,0.02536,118830.0,118820.0,1.26827915]
[1754952576193,0.02536,118830.0,118820.0,1.62907915]
[1754952577197,0.0021,118830.0,118820.0,1.62907915]
[1754952577996,0.0021,118830.0,118820.0,1.78035894]
[1754952582902,0.0021,118830.0,118820.0,1.62907915]
[1754952585707,0.04169265,118840.0,118820.0,1.88154055]
[1754952585708,0.01843265,118840.0,118820.0,1.88154055]
[1754952585898,0.01843265,118840.0,118830.0,0.80269205]
[1754952586104,0.01843265,118840.0,118830.0,1.00137184]
[1754952587013,0.02043265,118840.0,118830.0,0.85009205]
[1754952587214,0.02053265,118840.0,118830.0,0.85009205]
[1754952588010,0.0021,118840.0,118830.0,0.85009205]
[1754952588714,0.0011,118840.0,118830.0,0.85009205]
[1754952591013,0.02437,118840.0,118830.0,0.85009205]
[1754952591215,0.02437,118840.0,118830.0,1.62581205]
[1754952591409,0.0011,118840.0,118830.0,1.62581205]
[1754952593215,0.02437,118840.0,118830.0,1.62581205]
[1754952593820,0.02437,118840.0,118830.0,1.3197383]
[1754952594019,0.02437,118840.0,118830.0,1.62581205]
[1754952594918,0.02437,118840.0,118830.0,1.98661205]
[1754952596426,0.0011,118840.0,118830.0,1.98661205]
[1754952598825,0.02437,118840.0,118830.0,1.98661205]
[1754952599223,0.0011,118840.0,118830.0,1.98661205]
[1754952600523,0.0011,118840.0,118830.0,2.2926858]
[1754952600924,0.02327,118860.0,118850.0,0.0841341]
[1754952601220,0.02327,118860.0,118850.0,1.62574785]
[1754952601729,0.10337,118860.0,118850.0,1.62574785]
[1754952601922,0.11741,118860.0,118850.0,1.26494785]
[1754952602123,0.11751,118860.0,118850.0,1.26494785]
[1754952602318,0.11751,118860.0,118850.0,1.62574785]
[1754952603128,0.11751,118860.0,118850.0,1.26494785]
[1754952603428,0.11751,118860.0,118850.0,1.62574785]
[1754952603627,0.201637,118860.0,118850.0,1.26494785]
[1754952604027,0.11751,118860.0,118850.0,1.26494785]
[1754952605227,0.11751,118860.0,118850.0,1.62574785]
[1754952605628,0.11751,118860.0,118850.0,1.26494785]
[1754952605834,0.201637,118860.0,118850.0,0.9588741]
[1754952606133,0.201637,118860.0,118850.0,1.26494785]
[1754952606430,0.11751,118860.0,118850.0,1.26494785]
[1754952607431,0.11751,118860.0,118850.0,1.62574785]
[1754952607729,0.201637,118860.0,118850.0,1.26494785]
[1754952609029,0.25721,118860.0,118850.0,1.26494785]
[1754952609332,0.11751,118860.0,118850.0,1.62574785]
[1754952610326,0.201637,118860.0,118850.0,1.26494785]
[1754952611323,0.201637,118860.0,118850.0,0.1839941]
[1754952611530,0.201637,118860.0,118850.0,0.9488041]
[1754952611728,0.154767,118860.0,118850.0,1.25487785]
[1754952612035,0.201637,118860.0,118850.0,1.25487785]
[1754952612335,0.201637,118860.0,118850.0,0.9488041]
[1754952613035,0.201637,118860.0,118850.0,0.9588341]
[1754952614039,0.201637,118860.0,118850.0,1.26490785]
[1754952616935,0.107497,118860.0,118850.0,1.26490785]
[1754952617338,0.140327,118860.0,118850.0,1.26490785]
[1754952617638,0.201637,118860.0,118850.0,1.26490785]
[1754952623740,0.187597,118860.0,118850.0,1.26490785]
[1754952623938,0.187597,118860.0,118850.0,1.62566785]
[1754952625749,0.154767,118860.0,118850.0,1.62566785]
[1754952626240,0.154767,118860.0,118850.0,1.26486785]
[1754952626447,0.202837,118860.0,118850.0,0.9587941]
[1754952626647,0.202837,118860.0,118850.0,0.9487641]
[1754952626842,0.202837,118860.0,118850.0,0.9587941]
[1754952628349,0.202837,118860.0,118850.0,0.9487641]
[1754952628749,0.202837,118860.0,118850.0,1.26486785]
[1754952628953,0.107497,118860.0,118850.0,1.26486785]
[1754952629553,0.107497,118860.0,118850.0,1.62566785]
[1754952629851,0.107497,118860.0,118850.0,1.26486785]
[1754952630852,0.178147,118860.0,118850.0,1.26486785]
[1754952631051,0.187547,118860.0,118850.0,1.26486785]
[1754952631448,0.202037,118860.0,118850.0,1.26486785]
[1754952632056,0.187547,118860.0,118850.0,1.26486785]
[1754952632356,0.187547,118860.0,118850.0,1.26482785]
[1754952632956,0.187547,118860.0,118850.0,1.62562785]
[1754952633355,0.187547,118860.0,118850.0,1.26482785]
[1754952633554,0.187547,118860.0,118850.0,1.62562785]
[1754952633955,0.187547,118860.0,118850.0,1.77690764]
[1754952634355,0.107497,118860.0,118850.0,1.77690764]
[1754952635560,0.107497,118860.0,118850.0,1.62562785]
[1754952636255,0.02335,118860.0,118850.0,1.62562785]
[1754952639362,0.0001,118860.0,118850.0,1.62562785]
[1754952640962,0.0021,118860.0,118850.0,1.62562785]
[1754952641163,0.0021,118860.0,118850.0,1.69364621]
[1754952641667,0.0011,118860.0,118850.0,1.69364621]
[1754952642263,0.1074434,118880.0,118860.0,0.3364982]
[1754952642464,0.02333,118880.0,118870.0,1.62440395]
[1754952642658,8e-05,118880.0,118870.0,1.62440395]
[1754952644068,8e-05,118880.0,118870.0,1.98620395]
[1754952644364,0.00018,118880.0,118870.0,1.98620395]
[1754952644965,0.01888853,118890.0,118870.0,2.23855975]
[1754952645164,0.01888853,118890.0,118880.0,1.1074806]
[1754952645962,0.02325,118910.0,118890.0,0.2523073]
[1754952646157,0.0001,118900.0,118890.0,0.7450634]
[1754952646356,0.0001,118900.0,118890.0,1.5196634]
[1754952646756,0.0001,118900.0,118890.0,1.5700834]
[1754952647265,0.10879893,118920.0,118910.0,0.0840919]
[1754952647560,0.20333893,118920.0,118910.0,0.9567019]
[1754952648163,0.20333893,118920.0,118910.0,0.9469519]
[1754952648466,0.20343893,118920.0,118910.0,0.9469519]
[1754952649773,0.09427403,118920.0,118910.0,1.26277565]
[1754952650066,0.09427403,118920.0,118910.0,1.26377565]
[1754952650767,0.04037403,118920.0,118910.0,1.26377565]
[1754952651070,0.02481403,118920.0,118910.0,1.26377565]
[1754952651972,0.02481403,118920.0,118910.0,0.9577019]
[1754952652170,0.02481403,118920.0,118910.0,1.26377565]
[1754952652771,0.02481403,118920.0,118910.0,1.62457565]
[1754952653967,0.00156403,118920.0,118910.0,1.62457565]
[1754952654373,0.02537403,118920.0,118910.0,1.62457565]
[1754952654673,0.02391,118920.0,118910.0,1.62457565]
[1754952657881,0.0001,118920.0,118910.0,1.69232426]
[1754952658477,0.02391,118920.0,118910.0,1.69232426]
[1754952659378,0.02491,118920.0,118910.0,1.69132426]
[1754952660082,0.0011,118920.0,118910.0,1.69132426]
[1754952661781,0.0001,118920.0,118910.0,1.69132426]
[1754952664385,0.30024301,118940.0,118930.0,0.0840778]
[1754952664687,0.34720301,118940.0,118930.0,0.9465678]
[1754952665079,1.03788676,118940.0,118930.0,0.9323678]
[1754952665383,1.03788676,118940.0,118930.0,0.8582378]
[1754952665587,1.03798676,118940.0,118930.0,0.8582378]
[1754952665978,1.03798676,118940.0,118930.0,0.8847978]
[1754952666176,1.03798676,118940.0,118930.0,0.8946478]
[1754952666381,0.42496756,118940.0,118930.0,0.9465278]
[1754952666583,0.42496756,118940.0,118930.0,1.26235155]
[1754952666584,0.10501381,118940.0,118930.0,1.26235155]
[1754952666789,0.11889381,118940.0,118930.0,1.26235155]
[1754952666983,0.20296451,118940.0,118930.0,1.25260155]
[1754952667178,0.20296451,118940.0,118930.0,0.8989578]
[1754952667378,0.20296451,118940.0,118930.0,0.9465278]
[1754952667579,0.20296451,118940.0,118930.0,0.9562778]
[1754952667777,0.11889381,118940.0,118930.0,0.96769621]
[1754952668078,0.20296451,118940.0,118930.0,0.96769621]
[1754952668277,0.18908451,118940.0,118930.0,0.96769621]
[1754952668478,0.20296451,118940.0,118930.0,0.95794621]
[1754952668886,0.11889381,118940.0,118930.0,0.96769621]
[1754952669199,0.04123381,118940.0,118930.0,1.63456996]
[1754952669381,0.04123381,118940.0,118930.0,1.27376996]
[1754952669581,0.07233381,118940.0,118930.0,1.27376996]
[1754952669786,0.20296451,118940.0,118930.0,0.96769621]
[1754952669979,0.20296451,118940.0,118930.0,1.27376996]
[1754952670586,0.11889381,118940.0,118930.0,0.96769621]
[1754952670786,0.11889381,118940.0,118930.0,1.32849621]
[1754952671188,0.07233381,118940.0,118930.0,0.86040996]
[1754952671384,0.07233381,118940.0,118930.0,1.32841621]
[1754952671686,0.02391,118940.0,118930.0,1.63448996]
[1754952672185,0.02491,118940.0,118930.0,1.63448996]
[1754952672882,0.0011,118940.0,118930.0,1.63448996]
[1754952673480,0.0011,118940.0,118930.0,1.32841621]
[1754952673676,0.04222061,118950.0,118930.0,1.80264086]
[1754952673886,0.6609835,118970.0,118960.0,0.0840564]
[1754952674086,0.7079435,118970.0,118960.0,0.9463864]
[1754952674280,0.7920073,118970.0,118960.0,0.95750822]
[1754952674483,0.8158173,118970.0,118960.0,0.95750822]
[1754952675383,0.5636428,118970.0,118960.0,1.27333197]
[1754952675688,0.5637428,118970.0,118960.0,1.27333197]
[1754952676091,0.4331335,118970.0,118960.0,1.27333197]
[1754952676484,0.4658135,118970.0,118960.0,1.27433197]
[1754952676685,0.1188935,118970.0,118960.0,1.27433197]
[1754952677387,0.2029428,118970.0,118960.0,1.27433197]
[1754952677691,0.2029428,118970.0,118960.0,0.95906822]
[1754952678085,0.86981655,118970.0,118960.0,0.18446822]
[1754952678280,0.2029428,118970.0,118960.0,0.95806822]
[1754952678490,0.50901655,118970.0,118960.0,0.95806822]
[1754952678890,0.2029428,118970.0,118960.0,0.95806822]
[1754952679093,0.50901655,118970.0,118960.0,0.95806822]
[1754952679487,0.2029428,118970.0,118960.0,0.95906822]
[1754952680594,0.2029428,118970.0,118960.0,0.96106822]
[1754952680995,0.2029428,118970.0,118960.0,0.97081822]
[1754952681294,0.0723335,118970.0,118960.0,1.27689197]
[1754952681491,0.1041735,118970.0,118960.0,1.27689197]
[1754952681895,0.1041735,118970.0,118960.0,0.97081822]
[1754952682101,0.1041735,118970.0,118960.0,1.27689197]
[1754952682793,0.1882228,118970.0,118960.0,1.27689197]
[1754952682992,0.2026628,118970.0,118960.0,1.27689197]
[1754952683797,0.5634628,118970.0,118960.0,0.96106822]
[1754952684600,0.2026628,118970.0,118960.0,0.96106822]
[1754952685295,0.2026628,118970.0,118960.0,0.97081822]
[1754952685898,0.2026628,118970.0,118960.0,0.96116822]
[1754952686500,0.5634628,118970.0,118960.0,0.96116822]
[1754952686887,0.2026628,118970.0,118960.0,0.96116822]
[1754952687294,0.2026628,118970.0,118960.0,0.97091822]
[1754952689293,0.2026628,118970.0,118960.0,1.27699197]
[1754952689794,0.1041735,118970.0,118960.0,1.27699197]
[1754952690198,0.0253735,118970.0,118960.0,1.27699197]
[1754952690902,0.0253735,118970.0,118960.0,0.97091822]
[1754952691098,0.0572135,118970.0,118960.0,1.27699197]
[1754952691296,0.0736835,118970.0,118960.0,0.97091822]
[1754952691602,0.2046628,118970.0,118960.0,0.97091822]
[1754952692003,0.5654628,118970.0,118960.0,0.97187822]
[1754952692297,0.2046628,118970.0,118960.0,0.97187822]
[1754952693399,0.5654628,118970.0,118960.0,0.96212822]
[1754952693703,0.2046628,118970.0,118960.0,0.96212822]
[1754952693902,0.2046628,118970.0,118960.0,0.97187822]
[1754952694396,0.87153655,118970.0,118960.0,0.01412182]
[1754952694702,0.87153655,118970.0,118960.0,0.0870564]
[1754952695004,0.87153655,118970.0,118960.0,0.9129364]
[1754952695308,0.87153655,118970.0,118960.0,0.9514464]
[1754952695498,0.87153655,118970.0,118960.0,0.96274965]
[1754952696113,0.87312395,118970.0,118960.0,0.96274965]
[1754952696406,0.87312395,118970.0,118960.0,0.96074965]
[1754952696603,0.87312395,118970.0,118960.0,0.96174965]
[1754952696804,0.87312395,118970.0,118960.0,0.9504464]
[1754952698696,1.01282395,118970.0,118960.0,0.9504464]
[1754952699098,0.7067502,118970.0,118960.0,0.9504464]
[1754952699304,1.01282395,118970.0,118960.0,0.9504464]
[1754952700202,1.01282395,118970.0,118960.0,0.96150219]
[1754952700393,0.7067502,118970.0,118960.0,0.96150219]
[1754952700597,0.0262574,118970.0,118960.0,1.27732594]
[1754952700805,0.1911067,118970.0,118960.0,1.27732594]
[1754952701193,0.2055467,118970.0,118960.0,0.97125219]
[1754952701599,0.1214974,118970.0,118960.0,0.97025219]
[1754952701806,0.1070574,118970.0,118960.0,0.97125219]
[1754952702006,0.0262574,118970.0,118960.0,1.27732594]
[1754952702204,0.0016874,118970.0,118960.0,1.63812594]
[1754952702392,0.0016874,118970.0,118960.0,1.65573559]
[1754952702594,0.0016874,118970.0,118960.0,1.65373559]
[1754952702805,0.0016874,118970.0,118960.0,1.65673559]
[1754952704708,0.0016874,118970.0,118960.0,1.35066184]
[1754952704906,0.0016874,118970.0,118960.0,1.65673559]
[1754952705912,0.0016874,118970.0,118960.0,1.96280934]
[1754952706212,0.06863575,118980.0,118970.0,0.0840493]
[1754952706402,0.06863575,118980.0,118970.0,0.84781305]
[1754952707404,0.0001,118980.0,118970.0,0.84881305]
[1754952707704,0.0002,118980.0,118970.0,0.84881305]
[1754952708009,0.0002,118980.0,118970.0,0.84981305]
[1754952708408,0.0002,118980.0,118970.0,0.5437393]
[1754952708709,0.07506,118980.0,118970.0,1.62857305]
[1754952709103,0.04124,118980.0,118970.0,1.62857305]
[1754952709304,0.02477,118980.0,118970.0,1.3224993]
[1754952709504,0.02477,118980.0,118970.0,1.62857305]
[1754952711310,0.02477,118980.0,118970.0,1.26777305]
[1754952711512,0.1899223,118980.0,118970.0,0.9613793]
[1754952711707,0.2044123,118980.0,118970.0,0.9613793]
[1754952712107,0.2709311,118980.0,118970.0,0.9613793]
[1754952713208,0.1868888,118980.0,118970.0,0.9613793]
[1754952713405,0.1385788,118980.0,118970.0,1.62825305]
[1754952713605,0.0912888,118980.0,118970.0,1.62825305]
[1754952715009,0.0667188,118980.0,118970.0,1.62825305]
[1754952716007,0.0667188,118980.0,118970.0,1.3221793]
[1754952716205,0.0667188,118980.0,118970.0,1.62825305]
[1754952716909,0.0897788,118980.0,118970.0,1.62825305]
[1754952720009,0.0667188,118980.0,118970.0,1.62825305]
[1754952720313,0.0897788,118980.0,118970.0,1.62825305]
[1754952720513,0.0897788,118980.0,118970.0,1.3221793]
[1754952720711,0.1708888,118980.0,118970.0,1.62825305]
[1754952720909,0.1057488,118980.0,118970.0,1.62825305]
[1754952721709,0.0897788,118980.0,118970.0,1.62825305]
[1754952724509,0.0897788,118980.0,118970.0,0.84981305]
[1754952724716,0.1708888,118980.0,118970.0,1.62789305]
[1754952725606,0.52718485,118980.0,118970.0,1.3120693]
[1754952725915,0.57549485,118980.0,118970.0,0.9511893]
[1754952726120,0.2694211,118980.0,118970.0,0.9511893]
[1754952726507,0.2694211,118980.0,118970.0,0.9609393]
[1754952728404,0.1853788,118980.0,118970.0,0.9609393]
[1754952728612,0.1853788,118980.0,118970.0,1.26701305]
[1754952729108,0.1853788,118980.0,118970.0,1.62781305]
[1754952729311,0.0667188,118980.0,118970.0,1.62781305]
[1754952729820,0.1738211,118980.0,118970.0,1.62781305]
[1754952730016,0.0897788,118980.0,118970.0,1.62781305]
[1754952730316,0.0897788,118980.0,118970.0,1.26701305]
[1754952732027,0.1395688,118980.0,118970.0,1.26701305]
[1754952732525,0.92180485,118980.0,118970.0,0.002]
[1754952732825,0.93775808,118980.0,118970.0,0.78]
[1754952733014,0.93775808,118980.0,118970.0,0.8640493]
[1754952733606,0.93775808,118980.0,118970.0,0.9129893]
[1754952734011,0.93775808,118980.0,118970.0,0.9131093]
[1754952735717,0.93775808,118980.0,118970.0,0.002]
[1754952735919,0.93775808,118980.0,118970.0,0.77964]
[1754952735920,1.24556208,118980.0,118970.0,0.77964]
[1754952736819,1.24556208,118980.0,118970.0,0.77864]
[1754952737017,1.24556208,118980.0,118970.0,0.77764]
[1754952738216,0.0840493,118970.0,118960.0,0.30931635]
[1754952738427,0.86968305,118970.0,118960.0,1.13353635]
[1754952738720,0.86968305,118970.0,118960.0,1.13349635]
[1754952739518,0.86968305,118970.0,118960.0,1.13449635]
[1754952740312,0.86968305,118970.0,118960.0,1.05144045]
[1754952741317,0.50888305,118970.0,118960.0,1.05144045]
[1754952741916,0.50888305,118970.0,118960.0,1.06119045]
[1754952742222,0.2028093,118970.0,118960.0,1.06119045]
[1754952742422,0.5636093,118970.0,118960.0,1.06119045]
[1754952742726,0.2028093,118970.0,118960.0,1.06119045]
[1754952743022,0.5636093,118970.0,118960.0,1.05144045]
[1754952743422,0.5636093,118970.0,118960.0,1.05244045]
[1754952743624,0.5636093,118970.0,118960.0,1.01342332]
[1754952743923,0.5636093,118970.0,118960.0,1.01142332]
[1754952744124,0.86968305,118970.0,118960.0,0.01924252]
[1754952744424,0.0840634,118950.0,118940.0,0.2906323]
[1754952744724,0.86964715,118950.0,118940.0,1.1145823]
[1754952746024,0.86964715,118950.0,118940.0,1.12513004]
[1754952746525,0.86964715,118950.0,118940.0,1.12713004]
[1754952747222,0.86964715,118950.0,118940.0,0.3260623]
[1754952747428,0.86964715,118950.0,118940.0,0.9189605]
[1754952747827,0.86964715,118950.0,118940.0,0.94391396]
[1754952748026,0.86964715,118950.0,118940.0,0.95952396]
[1754952749224,0.86964715,118950.0,118940.0,0.95852396]
[1754952749423,0.86964715,118950.0,118940.0,0.95652396]
[1754952750116,0.86964715,118950.0,118940.0,0.95632396]
[1754952751825,0.50884715,118950.0,118940.0,0.95632396]
[1754952752032,0.2027734,118950.0,118940.0,0.95632396]
[1754952752230,0.86964715,118950.0,118940.0,0.95632396]
[1754952752429,0.86964715,118950.0,118940.0,0.17988396]
[1754952752630,0.86964715,118950.0,118940.0,0.95592396]
[1754952752830,0.5635734,118950.0,118940.0,0.95592396]
[1754952753034,0.86964715,118950.0,118940.0,0.95592396]
[1754952753435,0.5635734,118950.0,118940.0,0.95592396]
[1754952753630,0.86964715,118950.0,118940.0,0.95592396]
[1754952754035,0.86964715,118950.0,118940.0,0.86178]
[1754952754237,0.86964715,118950.0,118940.0,0.9458505]
[1754952754830,0.5635734,118950.0,118940.0,0.9458505]
[1754952755134,0.5635734,118950.0,118940.0,0.95637716]
[1754952755433,0.86964715,118950.0,118940.0,0.95637716]
[1754952755831,0.86964715,118950.0,118940.0,0.95701716]
[1754952756536,0.5635734,118950.0,118940.0,0.95701716]
[1754952756728,0.86964715,118950.0,118940.0,0.95701716]
[1754952757138,0.5495234,118950.0,118940.0,0.96692716]
[1754952757437,0.86964715,118950.0,118940.0,0.96692716]
[1754952759538,0.5635734,118950.0,118940.0,0.1792405]
[1754952759740,0.86964715,118950.0,118940.0,0.9466905]
[1754952760734,0.86964715,118950.0,118940.0,0.9564405]
[1754952760934,0.77603715,118950.0,118940.0,0.9466905]
[1754952761131,0.77603715,118950.0,118940.0,0.9564405]
[1754952761336,0.80130715,118950.0,118940.0,0.9564405]
[1754952761532,0.86964715,118950.0,118940.0,0.9564405]
[1754952761840,0.5635734,118950.0,118940.0,0.9564405]
[1754952762034,0.1091634,118950.0,118940.0,1.32812668]
[1754952762342,0.1091634,118950.0,118940.0,0.96732668]
[1754952762532,0.1572134,118950.0,118940.0,0.96732668]
[1754952762733,0.1887234,118950.0,118940.0,0.96732668]
[1754952763334,0.1887234,118950.0,118940.0,0.96832668]
[1754952763532,0.1887234,118950.0,118940.0,0.97032668]
[1754952763840,0.5495234,118950.0,118940.0,0.97032668]
[1754952764335,0.1887234,118950.0,118940.0,0.97032668]
[1754952764539,0.0841634,118950.0,118940.0,1.33112668]
[1754952764846,0.0001,118950.0,118940.0,1.63720043]
[1754952772554,0.29429596,118970.0,118960.0,0.0840564]
[1754952772851,0.21024126,118970.0,118960.0,1.3186364]
[1754952773144,0.25977126,118970.0,118960.0,1.3186364]
[1754952773550,0.22562126,118970.0,118960.0,1.3186364]
[1754952773849,0.22572126,118970.0,118960.0,1.3186364]
[1754952774050,0.25987126,118970.0,118960.0,1.3186364]
[1754952774653,0.28223126,118970.0,118960.0,1.3186364]
[1754952774843,0.30691126,118970.0,118960.0,0.9578364]
[1754952775043,0.61298501,118970.0,118960.0,0.9578364]
[1754952775350,0.61198501,118970.0,118960.0,0.9578364]
[1754952775548,0.97278501,118970.0,118960.0,0.78621]
[1754952775746,1.14089621,118970.0,118960.0,0.77652]
[1754952776648,1.14089621,118970.0,118950.0,0.291898]
[1754952776854,0.0840635,118950.0,118940.0,0.36565059]
[1754952777147,0.50908725,118950.0,118940.0,1.20443059]
[1754952777552,0.50908725,118950.0,118940.0,1.22920059]
[1754952777850,0.50908725,118950.0,118940.0,1.23895059]
[1754952778252,0.50908725,118950.0,118940.0,1.23220059]
[1754952778660,0.50908725,118950.0,118940.0,1.22920059]
[1754952778849,0.86988725,118950.0,118940.0,0.28662079]
[1754952779048,0.86988725,118950.0,118940.0,1.06290079]
[1754952780156,0.86988725,118950.0,118940.0,1.06378079]
[1754952781652,0.86988725,118950.0,118940.0,0.78861]
[1754952782155,0.86988725,118950.0,118940.0,0.8726805]